bitfinex/quotes_ETHUSD_20251107
["timestamp","ask_amount","ask_price","bid_price","bid_amount"]
[1762527954205,3.05488582,3278.9,3278.6,0.152]
[1762527954206,0.005,3278.9,3278.6,0.152]
[1762527954682,0.005,3278.9,3278.8,0.3028]
[1762527954871,0.005,3278.9,3278.8,4.89758486]
[1762527955071,0.005,3278.9,3278.8,8.29008116]
[1762527955273,0.005,3278.9,3278.8,9.5192942]
[1762527955475,0.005,3279.9,3278.9,1.665216]
[1762527955688,0.005,3279.9,3279.0,0.405504]
[1762527955892,0.002,3280.2,3279.9,30.0]
[1762527956088,0.002,3280.2,3280.1,3.04868754]
[1762527956385,0.002,3280.2,3279.4,0.4946]
[1762527956698,0.002,3280.2,3279.8,1.259712]
[1762527956898,0.002,3280.2,3279.4,0.4946]
[1762527957075,0.002,3280.2,3279.6,1.259712]
[1762527957410,0.002,3280.2,3279.8,4.30863871]
[1762527957619,0.002,3280.2,3280.1,4.30839954]
[1762527957774,0.002,3280.2,3280.1,4.71390354]
[1762527957978,0.002,3280.2,3280.1,8.17007154]
[1762527958203,0.002,3280.2,3280.1,5.560096]
[1762527958407,0.002,3280.2,3280.1,10.17950014]
[1762527958608,0.002,3280.2,3280.1,2.3103216]
[1762527958810,0.002,3280.2,3280.1,5.5304616]
[1762527959110,0.002,3280.2,3280.1,5.0189846]
[1762527959491,0.002,3280.2,3280.1,3.625542]
[1762527959692,0.002,3280.2,3280.1,1.259712]
[1762527960080,0.0012,3280.2,3279.7,3.04905695]
[1762527960416,0.4631,3280.1,3278.8,0.6711439]
[1762527960578,0.4631,3280.1,3278.3,0.4946]
[1762527960783,0.0012,3280.2,3278.5,1.259712]
[1762527960975,0.0012,3280.2,3278.7,1.259712]
[1762527961176,3.04920563,3279.6,3278.9,1.259712]
[1762527961390,3.04987678,3280.2,3279.0,2.331403]
[1762527961391,0.4643,3280.2,3279.0,2.331403]
[1762527961704,3.04905058,3279.8,3278.8,1.259712]
[1762527961900,0.1903,3279.8,3278.8,0.2519424]
[1762527962136,3.04953571,3279.2,3279.0,1.259712]
[1762527962337,0.6534,3279.8,3278.1,0.005]
[1762527962641,3.05045451,3278.2,3278.1,0.005]
[1762527963206,0.4631,3279.2,3278.2,5.091804]
[1762527963400,0.6534,3279.8,3278.2,4.6579114]
[1762527963622,0.1903,3279.8,3278.2,1.0042804]
[1762527963802,0.1903,3279.8,3278.1,0.005]
[1762527963803,3.0499115,3278.8,3278.1,0.005]
[1762527964026,3.04924531,3279.5,3278.1,0.005]
[1762527964226,0.4631,3279.4,3278.1,0.005]
[1762527964567,0.1903,3278.2,3276.1,0.4996]
[1762527964840,3.05064063,3278.0,3276.6,3.05192327]
[1762527965041,0.32409406,3278.0,3276.1,0.4996]
[1762527965239,3.23548532,3277.2,3276.1,0.005]
[1762527965761,3.70208532,3277.2,3276.1,0.005]
[1762527966654,5.36730132,3277.2,3277.1,1e-08]
[1762527966837,5.36930132,3277.2,3277.1,1e-08]
[1762527967008,6.51648686,3277.2,3277.1,1e-08]
[1762527967424,3.45726181,3276.8,3275.7,0.001]
[1762527967654,3.05240987,3276.1,3275.7,0.001]
[1762527967854,4.31212187,3276.1,3275.7,0.001]
[1762527968019,4.77872187,3276.1,3275.7,0.001]
[1762527968207,5.56182414,3276.1,3275.7,0.001]
[1762527968413,5.96732814,3276.1,3275.7,0.001]
[1762527969633,1.24970227,3276.1,3275.7,0.001]
[1762527969836,3.92451387,3276.1,3275.7,0.001]
[1762527970182,6.03049158,3277.8,3275.7,0.001]
[1762527970335,3.05240987,3276.1,3275.7,0.001]
[1762527970530,0.32409406,3278.0,3275.7,0.001]
[1762527970829,3.05240987,3276.1,3275.7,0.001]
[1762527971261,3.05166468,3276.9,3275.7,0.001]
[1762527971575,0.1861,3277.2,3275.7,0.001]
[1762527971576,3.051564,3277.1,3275.7,0.001]
[1762527971869,3.05240987,3276.1,3275.7,0.001]
[1762527972661,0.4666,3276.6,3275.7,0.001]
[1762527973030,3.05240987,3276.1,3275.7,0.001]
[1762527974261,3.51900987,3276.1,3275.7,0.001]
[1762527974464,3.05240987,3276.1,3275.7,0.001]
[1762527974889,3.66288118,3276.1,3275.7,0.001]
[1762527975102,4.53498518,3276.1,3275.7,0.001]
[1762527975299,4.31240141,3275.8,3275.7,0.001]
[1762527975470,4.31240141,3275.8,3275.4,0.001]
[1762527975471,4.71818501,3275.5,3275.4,0.001]
[1762527975672,4.31305388,3275.1,3275.0,0.001]
[1762527975987,5.04968273,3275.1,3275.0,0.001]
[1762527976188,5.92178673,3275.1,3275.0,0.001]
[1762527976694,4.71883759,3274.8,3274.7,0.001]
[1762527976879,3.05604791,3272.2,3271.8,0.952226]
[1762527977194,3.05604791,3272.2,3271.0,0.15960012]
[1762527977195,0.405504,3273.2,3271.4,0.1546]
[1762527977491,3.05633208,3271.9,3271.4,0.1546]
[1762527977796,3.05648375,3271.8,3271.4,0.1546]
[1762527977999,0.4666,3272.3,3270.8,0.647]
[1762527978182,0.4666,3272.3,3270.6,0.1508]
[1762527978354,0.405504,3272.2,3270.7,2.252522]
[1762527978694,1.259712,3272.1,3270.7,0.2403322]
[1762527978897,0.4666,3272.3,3270.7,2.465]
[1762527979095,3.0568565,3271.4,3270.7,1.259712]
[1762527979310,3.05614131,3272.1,3270.0,3.05809276]
[1762527979507,0.1841,3270.8,3269.4,0.4962]
[1762527979713,3.0579502,3270.2,3269.5,2.07238171]
[1762527980021,3.05705976,3271.2,3270.2,2.95449]
[1762527980226,0.6507,3272.2,3269.6,3.31527738]
[1762527980227,0.6507,3272.2,3270.3,2.74090423]
[1762527980370,0.1841,3272.2,3270.9,3.05717761]
[1762527980598,3.05547896,3272.9,3272.1,0.1546]
[1762527980798,0.4666,3273.8,3272.1,0.1546]
[1762527981053,0.4666,3274.2,3272.2,1.755912]
[1762527981347,3.05427445,3274.1,3272.3,7.95898992]
[1762527981651,0.4666,3274.2,3272.3,0.4962]
[1762527981813,3.05427445,3274.1,3272.4,2.015566]
[1762527982148,0.35208745,3274.0,3272.5,0.2511766]
[1762527982302,0.4666,3274.1,3272.3,0.4962]
[1762527982498,0.4666,3274.5,3272.4,5.646424]
[1762527982755,0.1841,3274.6,3272.4,5.646424]
[1762527982756,0.1841,3274.6,3272.6,0.405504]
[1762527982897,0.1841,3274.6,3272.7,4.138278]
[1762527983098,0.4666,3274.5,3272.6,0.4962]
[1762527983346,0.4666,3274.5,3272.7,3.482109]
[1762527983634,3.05418117,3274.2,3272.8,0.3978309]
[1762527983932,0.405504,3274.3,3272.7,1.259712]
[1762527984240,3.0548234,3273.6,3272.7,3.05558101]
[1762527984460,3.05519492,3273.2,3272.1,1.414312]
[1762527984780,0.405504,3274.0,3272.1,0.1546]
[1762527984950,0.405504,3273.8,3272.1,0.1546]
[1762527985159,3.05474095,3273.6,3272.1,0.1546]
[1762527985475,9.08446621,3274.5,3272.2,4.968099]
[1762527985766,0.152,3273.7,3273.2,0.152]
[1762527986137,3.05437945,3274.0,3273.6,0.152]
[1762527986373,3.05436774,3274.0,3273.6,0.152]
[1762527986573,0.1833,3274.6,3272.9,0.1546]
[1762527986574,3.05506274,3273.3,3272.9,0.1546]
[1762527986778,0.152,3273.9,3273.2,0.152]
[1762527987074,0.4666,3274.5,3273.2,0.152]
[1762527987372,0.152,3274.4,3273.8,0.152]
[1762527987578,3.05418117,3274.2,3272.9,0.1546]
[1762527987868,0.152,3273.5,3272.8,0.152]
[1762527988102,3.05539429,3272.9,3272.8,0.152]
[1762527988388,3.05528689,3273.1,3272.8,0.152]
[1762527988680,3.05467881,3273.7,3273.0,0.152]
[1762527988681,3.05511155,3273.3,3273.0,0.152]
[1762527988821,0.6544312,3274.3,3272.6,3.05567438]
[1762527989024,0.1833,3274.6,3272.7,5.33171304]
[1762527989219,3.05418117,3274.2,3272.9,1.259712]
[1762527989427,3.05518,3273.2,3272.7,0.47208904]
[1762527989642,3.05390135,3274.5,3272.7,1.73180104]
[1762527989956,0.6499,3274.6,3272.9,1.259712]
[1762527990123,0.6499,3274.6,3273.1,1.259712]
[1762527990323,0.6499,3274.6,3273.3,3.05502092]
[1762527990571,1.259712,3275.1,3273.5,1.259712]
[1762527990572,0.4666,3275.1,3273.5,1.259712]
[1762527990881,0.1841,3275.5,3273.8,0.405504]
[1762527991061,0.1841,3275.8,3274.8,3.05356281]
[1762527991374,0.1841,3275.9,3274.0,0.405504]
[1762527991575,0.1841,3276.7,3274.2,1.259712]
[1762527991724,0.002,3277.2,3275.3,3.05315543]
[1762527991930,0.002,3277.2,3276.1,3.05234458]
[1762527992127,0.002,3277.2,3275.5,0.405504]
[1762527992439,3.05249773,3276.1,3275.6,0.34584772]
[1762527992639,3.05249773,3276.1,3275.0,0.4962]
[1762527992640,3.05175781,3276.8,3275.0,0.4962]
[1762527992849,0.4716,3276.9,3275.1,3.579915]
[1762527993036,3.05203723,3276.5,3274.3,0.4962]
[1762527993245,3.4573581,3276.7,3274.4,0.4962]
[1762527993444,3.4573581,3276.7,3274.5,1.259712]
[1762527993445,3.05321495,3275.3,3274.5,1.259712]
[1762527993631,0.39239581,3276.6,3273.6,0.1549]
[1762527993632,3.05253932,3276.0,3273.9,0.4962]
[1762527993862,0.405504,3276.4,3274.0,3.239805]
[1762527994037,0.1841,3275.9,3274.3,1.259712]
[1762527994235,0.1841,3275.9,3273.6,0.1549]
[1762527994236,4.31249461,3275.7,3273.6,0.6511]
[1762527994449,3.05406673,3274.4,3273.7,2.102173]
[1762527994651,3.05406673,3274.4,3273.8,1.259712]
[1762527994972,3.45847301,3275.5,3273.6,0.6511]
[1762527995171,2.21101186,3275.6,3273.8,1.259712]
[1762527995374,3.05306222,3275.4,3273.7,1.758012]
[1762527995581,3.05315543,3275.3,3273.6,0.1549]
[1762527995791,3.05334188,3275.1,3273.6,0.1549]
[1762527995952,0.4795,3275.2,3273.6,0.1549]
[1762527996262,3.05457197,3273.8,3273.3,1.414612]
[1762527996461,3.05457197,3273.8,3272.5,3.05571672]
[1762527996462,0.405504,3274.9,3272.8,0.1549]
[1762527996689,3.05418117,3274.2,3272.8,0.1549]
[1762527996892,0.1901,3274.3,3272.9,13.809893]
[1762527997052,0.1901,3274.6,3273.0,1.259712]
[1762527997259,3.05390135,3274.5,3273.0,1.259712]
[1762527997453,3.05475624,3273.6,3272.9,0.4983]
[1762527997701,3.05475284,3273.6,3273.1,1.259712]
[1762527997859,0.32440013,3274.4,3272.9,0.4983]
[1762527998410,0.4795,3274.4,3273.1,1.259712]
[1762527998704,0.4795,3274.4,3272.3,0.4983]
[1762527998705,3.05427445,3274.1,3272.3,0.4983]
[1762527998907,3.0552076,3273.1,3273.0,0.152]
[1762527999054,3.05556329,3272.8,3272.5,0.1549]
[1762527999387,0.4795,3273.9,3272.3,0.1549]
[1762527999596,3.05464764,3273.7,3272.3,1.414612]
[1762527999812,3.05586114,3272.4,3272.3,0.1549]
[1762527999951,3.05492759,3273.4,3271.7,0.1546]
[1762528000291,3.05592877,3272.4,3271.0,0.1508]
[1762528000450,0.4599,3272.4,3271.0,0.1508]
[1762528000652,3.05678339,3271.5,3271.0,0.1508]
[1762528000891,3.0570756,3271.1,3270.8,0.1546]
[1762528001091,3.46173871,3272.0,3271.9,0.001]
[1762528001392,6.00509057,3272.0,3271.9,0.001]
[1762528001688,5.59958657,3272.0,3271.9,0.001]
[1762528002287,0.1901,3272.5,3271.9,0.001]
[1762528002490,3.05623471,3272.0,3271.9,0.001]
[1762528002868,4.77584671,3272.0,3271.9,0.001]
[1762528003219,0.1901,3272.5,3271.9,0.001]
[1762528003423,3.05623471,3272.0,3271.9,0.001]
[1762528004105,3.51613471,3272.0,3271.9,0.001]
[1762528004309,0.1901,3272.5,3271.9,0.001]
[1762528004631,3.05623471,3272.0,3271.9,0.001]
[1762528004929,5.79258673,3272.0,3271.9,0.001]
[1762528006084,5.38708273,3272.0,3271.9,0.001]
[1762528006290,4.92718273,3272.0,3271.9,0.001]
[1762528006521,4.31594671,3272.0,3271.9,0.001]
[1762528006724,3.05623471,3272.0,3271.9,0.001]
[1762528007026,3.51613471,3272.0,3271.9,0.001]
[1762528007524,5.18135071,3272.0,3271.9,0.001]
[1762528009722,4.77584671,3272.0,3271.9,0.001]
[1762528009908,5.8646516,3272.0,3271.9,0.001]
[1762528010489,4.31594671,3272.0,3271.9,0.001]
[1762528010688,4.77584671,3272.0,3271.9,0.001]
[1762528012227,5.18135071,3272.0,3271.9,0.001]
[1762528013191,4.31622696,3271.7,3271.6,0.001]
[1762528013391,3.05641391,3271.9,3269.5,0.1549]
[1762528013392,3.0584781,3269.6,3269.5,0.1549]
[1762528013801,3.05801374,3270.1,3269.5,0.628]
[1762528014025,0.1867,3271.2,3269.5,3.68655748]
[1762528014228,3.0574626,3270.7,3269.8,3.05823249]
[1762528014465,3.05784707,3270.3,3269.6,0.84175575]
[1762528014634,0.6466,3271.5,3269.7,3.53140308]
[1762528014843,3.05776559,3270.4,3269.8,3.05826543]
[1762528015019,3.05698214,3271.2,3269.7,0.4731]
[1762528015193,1.719612,3271.3,3269.7,1.732812]
[1762528015396,0.1867,3271.5,3269.7,0.4731]
[1762528015594,3.05730795,3270.9,3270.1,3.05792178]
[1762528015794,3.24342198,3271.5,3269.8,4.474797]
[1762528015795,3.05679525,3271.4,3270.2,0.30579218]
[1762528016026,0.1867,3271.5,3270.0,3.05803382]
[1762528016027,3.05750858,3270.7,3270.0,3.05803382]
[1762528016233,0.1867,3271.5,3270.1,0.4731]
[1762528016407,3.05726849,3270.9,3270.1,0.4731]
[1762528016603,0.1867,3271.8,3270.1,0.4731]
[1762528016604,3.05740942,3270.8,3270.1,3.53105554]
[1762528016802,3.05746971,3270.7,3270.1,3.53102898]
[1762528017126,3.05746971,3270.7,3270.2,0.8262029]
[1762528017127,3.05752226,3270.7,3270.2,0.8262029]
[1762528017425,3.05724925,3271.0,3270.3,3.53087007]
[1762528017633,3.05725326,3271.0,3270.3,3.53087007]
[1762528017795,3.05712289,3271.1,3270.4,3.53082702]
[1762528018002,3.05699922,3271.2,3270.6,3.05747614]
[1762528018254,0.1867,3273.7,3270.8,1.259712]
[1762528018255,3.0565297,3271.7,3270.8,1.259712]
[1762528018457,3.05678721,3271.5,3270.7,0.4731]
[1762528018728,3.51604131,3272.1,3270.4,0.4731]
[1762528019062,3.05642154,3271.8,3270.4,0.4731]
[1762528019262,3.05744783,3270.8,3270.4,0.4731]
[1762528019563,3.05716872,3271.1,3270.4,0.4731]
[1762528019935,3.05716205,3271.1,3270.4,3.53082027]
[1762528020283,0.30564215,3271.8,3270.4,0.4731]
[1762528020457,3.05742684,3270.8,3270.2,1.259712]
[1762528020772,0.30564215,3271.8,3270.4,1.259712]
[1762528020972,0.4599,3272.4,3270.6,1.259712]
[1762528021130,0.4599,3272.4,3270.3,0.4731]
[1762528021331,0.4599,3272.4,3270.6,3.05754295]
[1762528021545,3.05595452,3272.3,3270.6,3.05747625]
[1762528021763,3.05716693,3271.1,3270.7,0.30574763]
[1762528022074,3.05731771,3270.9,3270.7,0.77884763]
[1762528022227,3.0577345,3270.4,3269.2,0.001]
[1762528022427,3.05700154,3271.2,3270.0,0.4731]
[1762528022634,3.05695498,3271.3,3270.4,3.05767067]
[1762528022868,1.259712,3272.0,3270.6,3.05748491]
[1762528023037,0.43158533,3271.9,3270.6,1.1906903]
[1762528023241,3.05670181,3271.5,3271.4,0.1528]
[1762528023968,3.05748895,3270.7,3269.2,0.001]
[1762528024171,0.405504,3271.5,3269.6,0.4731]
[1762528024385,3.0582008,3269.9,3269.6,0.4731]
[1762528024676,3.0584781,3269.6,3269.2,0.001]
[1762528024832,4.31718466,3270.7,3269.2,0.001]
[1762528025031,3.0584781,3269.6,3269.2,0.001]
[1762528025335,0.43171847,3270.6,3269.2,0.001]
[1762528025565,3.0584781,3269.6,3269.2,0.001]
[1762528025872,3.0584781,3269.6,3269.5,0.6354]
[1762528026738,3.0584781,3269.6,3269.5,0.001]
[1762528026932,5.2098941,3269.6,3269.5,0.001]
[1762528027174,5.2098941,3269.6,3269.2,0.001]
[1762528027477,4.72397475,3269.3,3269.2,0.001]
[1762528027680,3.06072477,3267.2,3267.1,0.1518]
[1762528027887,1.259712,3268.3,3267.1,0.1518]
[1762528028089,0.405504,3269.0,3267.2,0.4795]
[1762528028238,0.891704,3269.3,3267.2,0.4795]
[1762528028591,1.259712,3269.0,3267.2,0.4795]
[1762528028876,3.05969464,3268.3,3266.7,0.4795]
[1762528029174,3.06138068,3266.5,3266.2,0.4795]
[1762528029379,3.06138068,3266.5,3265.2,3.21719224]
[1762528029541,3.06166187,3266.2,3266.1,0.1549]
[1762528030076,3.06166187,3266.2,3265.2,0.1546]
[1762528030077,0.6697,3267.3,3266.0,0.1549]
[1762528030236,3.06175561,3266.1,3266.0,0.1549]
[1762528030571,3.06175561,3266.1,3266.0,0.6344]
[1762528030870,0.405504,3267.6,3266.0,0.6344]
[1762528031186,3.05978826,3268.2,3266.1,0.4795]
[1762528031350,3.06025644,3267.7,3267.6,0.1518]
[1762528031671,0.1835,3269.0,3266.1,0.4795]
[1762528031833,3.06025644,3267.7,3266.2,0.4795]
[1762528032175,3.06115952,3266.8,3266.2,0.4795]
[1762528032471,3.06054101,3267.4,3266.4,1.259712]
[1762528032681,3.24262268,3269.0,3266.5,8.645168]
[1762528032839,3.06006915,3267.9,3267.8,0.1518]
[1762528033175,0.1835,3269.4,3267.8,0.1518]
[1762528033395,3.06006915,3267.9,3267.8,0.1518]
[1762528033761,3.06050366,3267.5,3267.2,0.4795]
[1762528034003,3.06042737,3267.6,3267.3,0.1518]
[1762528034170,3.21287702,3267.9,3267.3,0.3046]
[1762528034504,3.06033934,3267.7,3267.4,0.4795]
[1762528034708,3.05885231,3269.2,3267.4,0.4795]
[1762528034914,3.05780058,3270.4,3268.2,0.1528]
[1762528034915,0.1528,3268.7,3268.2,0.1528]
[1762528035205,3.06025644,3267.7,3267.6,0.1528]
[1762528035361,3.06053743,3267.4,3267.3,0.1518]
[1762528035717,3.21333743,3267.4,3267.3,0.1518]
[1762528035876,3.21333743,3267.4,3266.9,0.4795]
[1762528035877,3.06090694,3267.1,3266.9,0.4795]
[1762528036071,3.06081846,3267.1,3267.0,0.6313]
[1762528036309,3.06135953,3266.6,3266.3,0.4795]
[1762528036464,3.0613613,3266.6,3266.3,0.4795]
[1762528036667,0.1528,3267.2,3266.5,0.1528]
[1762528036863,0.1528,3267.2,3267.1,0.1518]
[1762528037101,0.4862,3269.5,3267.4,3.06051582]
[1762528037401,3.05862283,3269.5,3267.4,0.30605158]
[1762528037562,3.05857164,3269.5,3267.5,0.4795]
[1762528037758,3.05962431,3268.4,3267.5,0.4795]
[1762528037963,3.05875875,3269.3,3267.5,0.4795]
[1762528038177,0.4862,3269.3,3267.4,0.4795]
[1762528038374,0.4862,3269.3,3267.6,0.4795]
[1762528038375,3.06013808,3267.9,3267.6,0.4795]
[1762528038600,1.259712,3268.5,3267.6,0.4795]
[1762528038904,0.2519424,3268.5,3267.6,0.4795]
[1762528039111,1.259712,3269.1,3267.6,0.4795]
[1762528039262,1.259712,3268.8,3267.6,0.4795]
[1762528039462,0.4862,3270.1,3267.6,0.4795]
[1762528039666,0.4882,3269.6,3267.6,0.4795]
[1762528039974,1.259712,3269.2,3267.6,0.4795]
[1762528040177,0.405504,3269.5,3267.6,0.6534212]
[1762528040511,1.259712,3268.6,3267.2,0.4795]
[1762528040847,3.06019132,3267.8,3267.2,1.739212]
[1762528041041,3.06044199,3267.6,3267.2,0.4795]
[1762528041225,3.06027539,3267.7,3267.3,0.4795]
[1762528041405,3.05922662,3268.8,3267.3,0.4795]
[1762528041605,3.06053743,3267.4,3267.1,0.1528]
[1762528041834,3.06072477,3267.2,3267.1,0.1528]
[1762528041991,3.06072477,3267.2,3267.1,0.001]
[1762528042539,3.05932021,3268.7,3267.1,0.4805]
[1762528042742,0.405504,3268.7,3267.1,0.4805]
[1762528043038,0.21376603,3268.6,3267.1,0.4805]
[1762528043335,1.259712,3268.3,3267.1,0.4805]
[1762528043541,3.06041194,3267.6,3267.1,0.4805]
[1762528043743,3.06022763,3267.8,3267.1,0.4805]
[1762528043941,3.06031226,3267.7,3267.1,0.4805]
[1762528044234,0.21376603,3268.6,3267.1,0.4805]
[1762528044389,1.259712,3268.4,3267.1,0.4805]
[1762528044589,0.21376603,3268.6,3267.1,0.4805]
[1762528044791,1.259712,3268.8,3267.1,0.4805]
[1762528044990,3.05903946,3269.0,3267.1,0.4805]
[1762528045241,0.1835,3269.9,3267.3,1.259712]
[1762528045548,0.1835,3272.4,3267.7,0.405504]
[1762528045549,0.4862,3270.4,3267.7,0.405504]
[1762528045692,0.4862,3270.4,3267.9,1.259712]
[1762528045892,3.0604781,3269.6,3269.5,0.1558]
[1762528046340,0.002,3269.6,3269.5,0.6353]
[1762528046896,0.6697,3271.1,3269.5,0.6353]
[1762528047098,3.05829315,3269.8,3269.6,0.4795]
[1762528047315,3.06010488,3270.0,3269.6,0.4795]
[1762528047316,3.06015827,3270.0,3269.6,0.4795]
[1762528047641,3.05819749,3269.9,3269.8,0.1528]
[1762528048128,0.002,3270.0,3269.8,0.6323]
[1762528048558,0.002,3270.0,3269.9,0.4795]
[1762528048761,0.002,3270.0,3269.9,0.6323]
[1762528048977,0.002,3270.0,3269.9,3.69049749]
[1762528049270,3.05623471,3272.0,3270.3,0.405504]
[1762528049429,3.05658176,3271.7,3270.1,3.05801045]
[1762528049631,0.4862,3272.3,3270.4,3.05772994]
[1762528049969,0.1835,3272.5,3270.5,0.4795]
[1762528049970,3.05614131,3272.1,3270.5,0.4795]
[1762528050266,3.05639706,3271.9,3270.5,0.4795]
[1762528050424,3.05706337,3271.2,3270.0,0.4795]
[1762528050621,3.42887753,3272.0,3270.0,0.4795]
[1762528050848,0.37258413,3272.0,3270.3,0.405504]
[1762528051163,0.4862,3271.9,3269.9,0.4795]
[1762528051361,0.1835,3272.2,3269.5,0.1558]
[1762528051362,0.1835,3272.2,3269.6,0.4795]
[1762528051530,3.05726858,3270.9,3270.1,3.463511]
[1762528051738,3.05735085,3270.9,3270.1,3.46350059]
[1762528051931,3.05733141,3270.9,3270.2,3.53734515]
[1762528052135,0.3239524,3272.1,3270.3,0.4795]
[1762528052338,3.05737881,3270.8,3270.3,0.4795]
[1762528052543,3.05717527,3271.0,3270.3,0.4795]
[1762528052742,3.05586545,3272.4,3270.3,0.4795]
[1762528052943,0.589004,3272.5,3270.3,0.4795]
[1762528052944,1.259712,3272.0,3270.3,0.4795]
[1762528053258,3.05772249,3270.5,3270.3,0.4795]
[1762528053460,3.05770749,3270.5,3270.3,0.4795]
[1762528053617,0.4862,3272.1,3270.3,0.4795]
[1762528053928,0.4862,3272.1,3270.5,3.05755536]
[1762528054133,0.1929412,3272.0,3270.6,0.4795]
[1762528054337,0.4862,3272.1,3270.6,0.4795]
[1762528054566,3.05688446,3271.4,3270.7,3.05738054]
[1762528054732,0.002,3272.0,3270.6,0.4795]
[1762528054930,0.002,3272.0,3270.8,3.0572856]
[1762528055167,0.002,3272.0,3270.6,0.4795]
[1762528055328,3.05824867,3272.0,3270.6,0.4795]
[1762528055646,3.05824867,3272.0,3270.4,3.05771153]
[1762528055647,3.05732546,3270.9,3270.1,0.4681]
[1762528055902,3.05651496,3271.7,3270.0,0.4681]
[1762528056085,3.05727427,3270.9,3270.0,0.4681]
[1762528056403,0.35310146,3271.7,3269.2,0.4681]
[1762528056567,1.259712,3270.8,3269.2,0.4681]
[1762528056902,0.43169745,3270.7,3268.8,0.1558]
[1762528057059,3.05872296,3269.4,3268.9,0.4681]
[1762528057259,3.05855235,3269.6,3268.9,3.52720052]
[1762528057464,3.05754295,3270.6,3269.1,1.259712]
[1762528057686,0.43169745,3270.7,3269.2,0.03058852]
[1762528057888,0.43169745,3270.7,3269.4,3.05866519]
[1762528057889,3.05789162,3270.3,3269.4,3.05866519]
[1762528058092,3.05695427,3271.3,3269.3,0.405504]
[1762528058093,0.4986,3272.0,3270.2,0.1566]
[1762528058367,3.05642154,3271.8,3270.5,3.05758052]
[1762528058567,3.05714435,3271.1,3270.5,1.259712]
[1762528058769,0.4986,3272.0,3270.3,3.52591004]
[1762528058770,3.05724338,3271.0,3270.3,0.4681]
[1762528059102,0.1528,3271.6,3271.0,0.1528]
[1762528059401,3.05671257,3271.5,3271.0,0.1528]
[1762528059616,0.1528,3271.6,3271.0,0.1528]
[1762528060000,3.05703916,3271.2,3271.0,0.1528]
[1762528060393,0.1528,3271.6,3271.0,0.1528]
[1762528060598,3.05697312,3271.3,3271.0,0.1528]
[1762528060919,0.1528,3271.8,3270.6,0.4986]
[1762528061093,3.0568943,3271.3,3271.2,0.1528]
[1762528061299,3.0568233,3271.4,3271.2,0.1528]
[1762528061495,0.002,3272.0,3271.2,0.6514]
[1762528061698,0.1548,3272.0,3271.5,0.1528]
[1762528062206,0.002,3272.0,3271.1,0.6504]
[1762528062406,3.05690974,3271.3,3271.1,0.1518]
[1762528062606,3.05698214,3271.2,3271.1,0.1518]
[1762528062780,0.002,3272.0,3270.8,0.4986]
[1762528062781,3.05829354,3272.0,3270.8,0.4986]
[1762528062988,0.002,3272.0,3270.9,0.03057262]
[1762528063283,0.4641,3271.9,3270.3,0.4986]
[1762528063519,3.05642154,3271.8,3270.3,0.4986]
[1762528063716,0.002,3272.0,3270.4,3.269004]
[1762528063902,0.002,3272.0,3270.3,0.4986]
[1762528063903,0.002,3272.0,3270.7,0.405504]
[1762528064105,3.05632812,3271.9,3271.1,3.05701852]
[1762528064307,0.002,3272.0,3270.9,0.405504]
[1762528064488,0.002,3272.0,3271.1,3.05706383]
[1762528064489,3.0565451,3271.7,3271.1,3.05706383]
[1762528064688,0.002,3272.0,3271.0,1.758312]
[1762528064929,3.05676443,3271.5,3271.0,0.4986]
[1762528065095,3.05662497,3271.6,3271.1,0.4986]
[1762528065294,3.05673265,3271.5,3271.1,0.4986]
[1762528065506,3.05647417,3271.8,3271.1,0.4986]
[1762528065709,0.002,3272.0,3271.7,0.1518]
[1762528065911,3.05682104,3271.4,3271.2,0.1518]
[1762528066238,0.4661,3272.0,3270.5,0.4986]
[1762528066388,0.002,3272.0,3270.6,0.03057542]
[1762528066587,1.261712,3272.0,3270.5,0.4986]
[1762528066788,3.05642154,3271.8,3270.5,0.4986]
[1762528067004,0.4641,3271.9,3270.5,0.4986]
[1762528067299,3.05724865,3271.0,3270.5,0.4986]
[1762528067505,3.05711244,3271.1,3270.6,1.259712]
[1762528067725,0.002,3272.0,3270.6,0.48159374]
[1762528067901,3.05697081,3271.3,3270.7,0.4986]
[1762528068105,3.05681039,3271.4,3270.8,3.05727248]
[1762528068422,0.002,3272.0,3270.8,1.259712]
[1762528068614,3.05688816,3271.4,3270.9,1.259712]
[1762528068811,0.002,3272.0,3270.7,1.259712]
[1762528068988,0.002,3272.0,3271.2,1.259712]
[1762528069194,3.05678521,3271.5,3270.9,0.4986]
[1762528069396,3.05684762,3271.4,3270.9,1.758312]
[1762528069696,3.05632812,3271.9,3270.9,0.4986]
[1762528072296,0.1528,3271.4,3270.8,0.1528]
[1762528072530,3.05726252,3270.9,3270.8,0.1528]
[1762528072735,3.05782344,3270.3,3269.3,3.05869954]
[1762528072893,3.52136252,3270.9,3269.4,0.81995995]
[1762528073093,1.447512,3271.3,3269.5,2.535142]
[1762528073313,3.52108214,3271.2,3269.5,1.259712]
[1762528073512,1.665216,3271.0,3269.3,0.4986]
[1762528073712,3.0582803,3269.9,3269.3,0.4986]
[1762528074045,3.05771571,3270.5,3269.2,0.1549]
[1762528074046,3.05866083,3269.5,3269.2,0.1549]
[1762528074336,3.05801045,3270.1,3268.8,0.6544]
[1762528074527,3.05819749,3269.9,3269.8,0.001]
[1762528075081,4.78200949,3269.9,3269.8,0.001]
[1762528075216,5.18751349,3269.9,3269.8,0.001]
[1762528075416,0.405504,3269.6,3268.0,0.1518]
[1762528075672,3.05981011,3268.2,3268.0,0.1518]
[1762528075825,0.405504,3269.7,3268.0,0.1518]
[1762528076017,3.05895554,3269.1,3268.1,0.4986]
[1762528076216,3.52250132,3269.7,3268.1,0.4986]
[1762528076217,3.05928236,3268.8,3268.1,0.4986]
[1762528076437,3.05909957,3269.0,3268.3,3.0596371]
[1762528076732,3.05912603,3269.0,3268.4,0.30596371]